fUST/lending_fUST_20240902
["ID","MTS","AMOUNT","RATE_DAILY","PERIOD"]
[336986388,1725277327804,-187.6419966,0.00054794,120]
[336986389,1725277347592,-1812.3780034,0.00054794,120]
[336986390,1725277347620,-500.0,0.00054794,120]
[336986391,1725277347646,-557.0,0.00054794,120]
[336986392,1725277347673,-557.0,0.00054794,120]
[336986393,1725277347698,-557.0,0.00054794,120]
[336986394,1725277347725,-557.0,0.00054794,120]
[336986395,1725277347751,-557.0,0.00054794,120]
[336986396,1725277347779,-557.0,0.00054794,120]
[336986397,1725277347806,-557.0,0.00054794,120]
[336986398,1725277347833,-505.79624477,0.00054794,120]
[336986399,1725277347862,-377.80457954,0.00054794,120]
[336986400,1725277347889,-500.0,0.00054794,120]
[336986401,1725277347918,-255.10568739,0.00054794,120]
[336986402,1725277347946,-500.0,0.00054794,120]
[336986403,1725277347973,-500.0,0.00054794,7]
[336986404,1725277348001,-500.0,0.00054794,120]
[336986405,1725277348028,-500.0,0.00054794,120]
[336986406,1725277348056,-187.95270255,0.00054794,120]
[336986407,1725277348086,-500.0,0.00054794,120]
[336986408,1725277348113,-500.0,0.00054794,120]
[336986409,1725277348139,-500.0,0.00054794,120]
[336986410,1725277348165,-500.0,0.00054794,120]
[336986411,1725277348192,-500.0,0.00054794,120]
[336986412,1725277348218,-153.31,0.00054794,120]
[336986413,1725277348245,-500.0,0.00054794,120]
[336986414,1725277348272,-500.0,0.00054794,120]
[336986415,1725277348297,-500.0,0.00054794,120]
[336986416,1725277348324,-1545.44,0.00054794,120]
[336986417,1725277348351,-500.0,0.00054794,120]
[336986418,1725277348377,-500.0,0.00054794,120]
[336986419,1725277348404,-4400.34,0.00054794,120]
[336986420,1725277348434,-500.0,0.00054794,8]
[336986421,1725277348461,-500.0,0.00054794,120]
[336986422,1725277348485,-500.0,0.00054794,120]
[336986423,1725277348510,-500.0,0.00054794,120]
[336986424,1725277348535,-500.0,0.00054794,120]
[336986425,1725277348560,-500.0,0.00054794,120]
[336986426,1725277348684,-500.0,0.00054794,120]
[336986427,1725277348711,-362.87278235,0.00054794,120]
[336986428,1725277353754,-137.12721765,0.00054794,120]
[336986429,1725277353785,-500.0,0.00054794,120]
[336986430,1725277353814,-500.0,0.00054794,120]
[336986431,1725277353840,-500.0,0.00054794,120]
[336986432,1725277353867,-500.0,0.00054794,120]
[336986433,1725277353895,-500.0,0.00054794,120]
[336986434,1725277353923,-500.0,0.00054794,120]
[336986435,1725277353952,-519.89,0.00054794,120]
[336986436,1725277353981,-185.9965794,0.00054794,120]
[336986437,1725277354009,-489.0,0.00055,120]
[336986438,1725277354038,-574.0657238,0.00059975,2]
[336986439,1725277354066,-2000.0,0.0006,120]
[336986440,1725277354095,-180.2,0.00065753,120]
[336986441,1725277354123,-485.0,0.000675,120]
[336986442,1725277354150,-500.0,0.00069999,120]
[336986443,1725277354178,-500.0,0.00069999,120]
[336986444,1725277354206,-2000.0,0.0007,120]
[336986445,1725277354233,-481.0,0.000725,120]
[336986446,1725277354261,-1026.0,0.000725,120]
[336986447,1725277354289,-624.96,0.00074006,120]
[336986448,1725277354317,-500.0,0.00074006,120]
[336986449,1725277354345,-288.54,0.00074006,120]
[336986450,1725277354372,-11508.22047915,0.00074007,2]
[336986451,1725277360566,-500.0,0.00054794,120]
[336986452,1725277360602,-500.0,0.00054794,120]
[336986453,1725277360629,-500.0,0.00054794,120]
[336986454,1725277360656,-500.0,0.00054794,120]
[336986455,1725277360683,-500.0,0.00054794,120]
[336986456,1725277360710,-500.0,0.00054794,120]
[336986457,1725277360736,-500.0,0.00054794,120]
[336986458,1725277360762,-2389.04326645,0.00074007,2]
[336986459,1725277360788,-2000.02,0.00074996,120]
[336986460,1725277360814,-557.0,0.00074996,120]
[336986461,1725277360844,-500.0,0.00074996,120]
[336986462,1725277360873,-2000.02,0.00074998,120]
[336986463,1725277360900,-557.0,0.00074998,120]
[336986464,1725277360928,-500.0,0.00074998,120]
[336986465,1725277360955,-500.0,0.00074999,60]
[336986466,1725277360982,-2000.0,0.000765,120]
[336986467,1725277361008,-180.2,0.00077161,120]
[336986468,1725277361034,-488.0,0.000775,120]
[336986469,1725277361061,-2000.0,0.000775,120]
[336986470,1725277361088,-500.0,0.00079998,120]
[336986471,1725277361118,-1545.44,0.00079998,120]
[336986472,1725277361145,-500.0,0.00079998,120]
[336986473,1725277361174,-4400.34,0.00079998,120]
[336986474,1725277361202,-500.0,0.00079998,8]
[336986475,1725277361226,-382.93673355,0.00079998,120]
[336986477,1725277425027,201.81663,0.00014247,2]
[336986478,1725277539162,-300.0,0.00054793,15]
[336986479,1725277539183,-299.78768719,0.00054794,2]
[336986480,1725277557190,-2075.21231281,0.00054794,2]
[336986481,1725277557217,-2375.0,0.00054794,2]
[336986482,1725277557248,-633.64,0.00054794,120]
[336986483,1725277557277,-2375.0,0.00054794,2]
[336986484,1725277557302,-2375.0,0.00054794,2]
[336986485,1725277557330,-2375.0,0.00054794,2]
[336986486,1725277557357,-2375.0,0.00054794,2]
[336986487,1725277557385,-500.0,0.00054794,120]
[336986488,1725277557414,-500.0,0.00054794,120]
[336986489,1725277557440,-500.0,0.00054794,120]
[336986490,1725277557467,-500.0,0.00054794,120]
[336986491,1725277557495,-429.96,0.00054794,120]
[336986492,1725277557521,-500.0,0.00054794,120]
[336986493,1725277557548,-185.849452,0.00054794,120]
[336986494,1725277557574,-500.0,0.00054794,120]
[336986495,1725277557602,-500.0,0.00054794,120]
[336986496,1725277557645,-500.0,0.00054794,120]
[336986497,1725277557675,-500.0,0.00054794,120]
[336986498,1725277557702,-500.0,0.00054794,120]
[336986499,1725277557730,-500.0,0.00054794,120]
[336986500,1725277557759,-500.0,0.00054794,120]
[336986501,1725277561285,500.0,0.00054794,120]
[336986502,1725277610976,500.0,0.00054794,120]
[336986503,1725277625097,-1000.0,0.000645,120]
[336986504,1725277625121,-180.2,0.00065753,120]
[336986505,1725277625146,-150.0,0.00069,120]
[336986506,1725277625170,-341.23157866,0.00069999,2]
[336986507,1725277625202,-248.49976949,0.00069999,2]
[336986508,1725277629482,500.0,0.00054794,120]
[336986509,1725277629727,500.0,0.00054794,120]
[336986510,1725277636167,-323.71874327,0.00069999,2]
[336986511,1725277637120,-190.82080764,0.00069999,2]
[336986513,1725277650219,-2000.0,0.000645,120]
[336986514,1725277650241,-2000.0,0.000645,120]
[336986515,1725277650262,-1270.72910094,0.00069999,2]
[336986516,1725277650283,-2000.0,0.000745,120]
[336986517,1725277650323,-300.0,0.00076849,120]
[336986518,1725277650347,-3841.0,0.0007685,120]
[336986519,1725277650369,-180.2,0.00077161,120]
[336986520,1725277650392,-500.0,0.00079997,120]
[336986521,1725277650416,-1416.65,0.00079997,120]
[336986522,1725277650441,-822.71409768,0.00079997,120]
[336986523,1725277651113,-1048.55572679,0.00079997,120]
[336986524,1725277653164,-453.90877735,0.00079997,120]
[336986525,1725277784521,443.47,0.00054794,120]
[336986526,1725277805286,500.0,0.00054794,120]
[336986565,1725277832588,-1365.02,0.0006,120]
[336986567,1725277832598,-167.541,0.00061896,120]
[336986569,1725277832607,-240.342,0.00061896,120]
[336986571,1725277832617,-2000.0,0.0007,120]
[336986573,1725277832626,-201.2847414,0.00072497,2]
[336986575,1725277832635,-2000.0,0.000725,120]
[336986577,1725277832644,-2000.0,0.000745,120]
[336986579,1725277832654,-2000.0,0.000745,120]
[336986581,1725277832663,-2095.06,0.00075,120]
[336986583,1725277832672,-305.4916488,0.00075116,2]
[336986585,1725277832681,-2000.0,0.000755,120]
[336986587,1725277832690,-2000.0,0.000755,120]
[336986589,1725277832700,-2000.0,0.000765,120]
[336986591,1725277832710,-3625.5931808,0.0007685,120]
[336986661,1725277838751,-159.681,0.00061896,120]
[336986662,1725277838763,-171.792466,0.00074288,2]
[336986663,1725277838773,-6374.4068192,0.0007685,120]
[336986664,1725277838784,-607.24,0.00079997,120]
[336986665,1725277838794,-500.0,0.00079997,120]
[336986666,1725277838811,-117.06326645,0.00079998,120]
[336986667,1725277838822,-500.0,0.00079998,120]
[336986668,1725277838832,-2375.0,0.00079998,2]
[336986669,1725277838842,-500.25,0.00079998,120]
[336986670,1725277838854,-500.0,0.00079998,120]
[336986671,1725277838863,-500.0,0.00079998,120]
[336986672,1725277838874,-2000.02,0.00079999,120]
[336986673,1725277838884,-1730.1142191,0.0008,120]
[336986674,1725277838894,-486.0,0.000825,120]
[336986675,1725277838904,-504.0,0.00083,120]
[336986676,1725277838914,-152.32070971,0.00084448,120]
[336986677,1725277838924,-485.0,0.000875,120]
[336986678,1725277838933,-2000.0,0.000875,120]
[336986679,1725277838944,-180.2,0.00088569,120]
[336986680,1725277838956,-500.0,0.00089,120]
[336986681,1725277838966,-2000.0,0.000895,120]
[336986682,1725277838975,-503.64031216,0.0008955,120]
[336986683,1725277838984,-487.0,0.0009,120]
[336986684,1725277838994,-152.32070971,0.00091948,120]
[336986685,1725277839004,-485.0,0.000925,120]
[336986686,1725277839014,-500.0,0.00095,120]
[336986687,1725277839024,-488.0,0.00095,120]
[336986688,1725277839034,-170.83193309,0.000979,120]
[336986689,1725277839046,-380.3912282,0.00097999,120]
[336986690,1725277839055,-500.0,0.00097999,120]
[336986691,1725277839065,-500.0,0.00097999,120]
[336986692,1725277839074,-500.0,0.00097999,120]
[336986693,1725277839084,-500.0,0.00097999,120]
[336986694,1725277839094,-500.0,0.00097999,120]
[336986695,1725277839104,-500.0,0.00097999,120]
[336986696,1725277839113,-500.0,0.00097999,120]
[336986697,1725277839124,-201.068918,0.00097999,120]
[336986698,1725277839135,-500.0,0.00097999,120]
[336986699,1725277839146,-500.0,0.00098,120]
[336986700,1725277839156,-152.32070971,0.00099448,120]
[336986701,1725277839166,-2000.0,0.000995,120]
[336986702,1725277839175,-180.2,0.00099977,120]
[336986703,1725277839184,-150.0,0.001,120]
[336986704,1725277839194,-500.0,0.001,120]
[336986705,1725277839204,-180.53990033,0.001,28]
[336986706,1725277839214,-486.0,0.00105,120]
[336986707,1725277839223,-152.32070971,0.00106948,120]
[336986708,1725277839232,-500.0,0.00109999,120]
[336986709,1725277839241,-500.0,0.00109999,120]
[336986710,1725277839251,-2375.0,0.00109999,2]
[336986711,1725277839264,-488.0,0.0011,120]
[336986712,1725277839273,-180.2,0.00111386,120]
[336986713,1725277839282,-152.3207097,0.00114448,120]
[336986714,1725277839292,-485.0,0.00115,120]
[336986715,1725277839302,-500.0,0.00115,120]
[336986716,1725277839311,-500.0,0.00118,120]
[336986717,1725277839321,-500.0,0.00119499,120]
[336986718,1725277839330,-1448.53,0.00119499,120]
[336986719,1725277839339,-3957.59,0.00119499,120]
[336986720,1725277839349,-500.0,0.00119499,120]
[336986721,1725277839358,-500.0,0.00119499,8]
[336986722,1725277839368,-2000.02,0.00119999,120]
[336986723,1725277839377,-180.2,0.00122794,120]
[336986724,1725277839387,-2000.0,0.001295,120]
[336986725,1725277839397,-500.0,0.0013,120]
[336986726,1725277839407,-180.2,0.00134202,120]
[336986727,1725277839417,-334.41798802,0.00136985,120]
[336986728,1725277839426,-500.0,0.00136985,120]
[336986729,1725277839435,-2375.0,0.00136985,2]
[336986730,1725277839445,-500.0,0.00136986,31]
[336986731,1725277839455,-500.0,0.00136986,31]
[336986732,1725277839464,-201.205445,0.00136986,31]
[336986733,1725277839474,-214.044616,0.00136986,120]
[336986734,1725277839484,-201.81663,0.00136986,120]
[336986735,1725277839494,-607.24,0.00139499,120]
[336986736,1725277839503,-500.0,0.00139499,120]
[336986737,1725277839513,-2000.0,0.001395,120]
[336986738,1725277839525,-2000.02,0.00142645,120]
[336986739,1725277839536,-180.2,0.0014561,120]
[336986740,1725277839545,-500.0,0.0015,120]
[336986741,1725277839555,-150.0,0.001506,120]
[336986742,1725277839564,-150.0,0.001516,120]
[336986743,1725277839573,-200.0,0.001526,120]
[336986744,1725277839583,-180.2,0.00157018,120]
[336986745,1725277839593,-2000.0,0.001595,120]
[336986746,1725277839603,-488.58025682,0.00164379,120]
[336986747,1725277839612,-500.0,0.00164379,120]
[336986748,1725277839622,-500.0,0.00164379,120]
[336986749,1725277839631,-500.0,0.00164379,120]
[336986750,1725277839641,-500.0,0.00164379,120]
[336986751,1725277839651,-500.0,0.0016438,120]
[336986752,1725277839661,-500.0,0.0016438,120]
[336986753,1725277839672,-10000.0,0.00168388,120]
[336986754,1725277839685,-180.2,0.00168426,120]
[336986755,1725277839697,-500.0,0.00169499,120]
[336986756,1725277839712,-1448.53,0.00169499,120]
[336986757,1725277839724,-3957.59,0.00169499,120]
[336986758,1725277839739,-500.0,0.00169499,120]
[336986759,1725277839751,-500.0,0.00169499,8]
[336986760,1725277839764,-2000.0,0.001695,120]
[336986761,1725277839774,-2000.0,0.001795,120]
[336986762,1725277839785,-180.2,0.00179834,120]
[336986763,1725277839796,-500.0,0.0018,120]
[336986764,1725277839809,-160.0,0.00185736,3]
[336986765,1725277839822,-160.0,0.00185736,5]
[336986766,1725277839833,-180.2,0.00191242,120]
[336986767,1725277839845,-12770.03375821,0.00199,120]
[336986768,1725277839856,-155.53,0.002,120]
[336986769,1725277839871,-500.0,0.002,120]
[336986770,1725277839883,-500.05638946,0.002,120]
[336986771,1725277839895,-167.0,0.002,120]
[336986772,1725277839906,-180.2,0.00202651,120]
[336986773,1725277839918,-2000.0,0.002095,120]
[336986774,1725277839930,-10000.0,0.0022,120]
[336986775,1725277839943,-7491.64879469,0.0024,120]
[336986776,1725277839955,-625.0,0.00246575,120]
[336986777,1725277839966,-625.0,0.00246575,120]
[336986778,1725277839979,-10000.0,0.00249255,120]
[336986779,1725277839990,-500.0,0.0025,120]
[336986780,1725277840002,-5500.0,0.0025,120]
[336986781,1725277840013,-356.0,0.0025,120]
[336986782,1725277840025,-159.0,0.00267,120]
[336986783,1725277840035,-10847.43342183,0.00269968,3]
[336986809,1725277840599,-3279.44657817,0.00269968,3]
[336986811,1725277840611,-11772.4,0.00269968,3]
[336986813,1725277840623,-16952.26,0.00269978,3]
[336986815,1725277840635,-500.0,0.00269988,120]
[336986816,1725277840646,-418.91,0.00269988,120]
[336986817,1725277840659,-1448.53,0.00269988,120]
[336986818,1725277840671,-3957.59,0.00269988,120]
[336986819,1725277840681,-625.0,0.00269988,120]
[336986820,1725277840693,-500.0,0.00269988,120]
[336986821,1725277840706,-500.0,0.00269988,8]
[336986822,1725277840725,-607.24,0.00269989,120]
[336986823,1725277840739,-500.0,0.00269989,120]
[336986824,1725277840751,-607.24,0.00269999,120]
[336986825,1725277840763,-500.0,0.00269999,120]
[336986826,1725277840773,-500.0,0.00269999,120]
[336986827,1725277840784,-1448.53,0.00269999,120]
[336986828,1725277840795,-3957.59,0.00269999,120]
[336986829,1725277840806,-625.0,0.00269999,120]
[336986830,1725277840817,-500.0,0.00269999,120]
[336986831,1725277840827,-500.0,0.00269999,120]
[336986832,1725277840836,-500.0,0.00269999,8]
[336986833,1725277840848,-29615.66650197,0.0027,120]
[336986834,1725277840858,-5000.0,0.002738,120]
[336986835,1725277840871,-293.38017832,0.00273873,120]
[336986836,1725277840881,-150.0,0.002739,120]
[336986837,1725277840891,-167.389999,0.002739,120]
[336986838,1725277840902,-817.87,0.00273962,120]
[336986839,1725277840913,-163.57,0.00273963,120]
[336986840,1725277840924,-1448.53,0.00273971,120]
[336986841,1725277840935,-3957.59,0.00273971,120]
[336986842,1725277840947,-625.0,0.00273971,120]
[336986843,1725277840962,-500.0,0.00273971,120]
[336986844,1725277840972,-500.0,0.00273971,8]
[336986845,1725277840984,-2000.02,0.00273972,120]
[336986846,1725277840994,-500.0,0.00273972,120]
[336986847,1725277841006,-2375.0,0.00273972,2]
[336986848,1725277841018,-607.24,0.00273972,120]
[336986849,1725277841032,-500.0,0.00273972,120]
[336986850,1725277841045,-500.0,0.00273972,120]
[336986851,1725277841056,-1448.53,0.00273972,120]
[336986852,1725277841067,-3957.59,0.00273972,120]
[336986853,1725277841079,-625.0,0.00273972,120]
[336986854,1725277841091,-500.0,0.00273972,120]
[336986855,1725277841102,-500.0,0.00273972,120]
[336986856,1725277841112,-500.0,0.00273972,8]
[336986857,1725277841122,-151.0,0.00273973,120]
[336986858,1725277841133,-151.0,0.00273973,120]
[336986859,1725277841142,-151.0,0.00273973,120]
[336986860,1725277841152,-151.0,0.00273973,120]
[336986861,1725277841162,-151.0,0.00273973,120]
[336986862,1725277841172,-151.0,0.00273973,120]
[336986863,1725277841183,-151.0,0.00273973,120]
[336986864,1725277841193,-151.0,0.00273973,120]
[336986865,1725277841203,-151.0,0.00273973,120]
[336986866,1725277841224,-151.0,0.00273973,30]
[336986867,1725277841235,-151.0,0.00273973,30]
[336986868,1725277841245,-151.0,0.00273973,120]
[336986869,1725277841257,-151.0,0.00273973,120]
[336986870,1725277841267,-151.0,0.00273973,120]
[336986871,1725277841278,-151.0,0.00273973,120]
[336986872,1725277841289,-151.0,0.00273973,120]
[336986873,1725277841299,-151.0,0.00273973,120]
[336986874,1725277841309,-151.0,0.00273973,120]
[336986875,1725277841319,-151.0,0.00273973,120]
[336986876,1725277841328,-151.0,0.00273973,120]
[336986877,1725277841341,-151.0,0.00273973,120]
[336986878,1725277841353,-151.0,0.00273973,120]
[336986879,1725277841364,-151.0,0.00273973,120]
[336986880,1725277841374,-215.197754,0.00273973,120]
[336986881,1725277841384,-151.0,0.00273973,120]
[336986882,1725277841396,-151.0,0.00273973,120]
[336986883,1725277841408,-151.0,0.00273973,120]
[336986884,1725277841418,-151.0,0.00273973,120]
[336986885,1725277841429,-151.0,0.00273973,120]
[336986886,1725277841440,-151.0,0.00273973,120]
[336986887,1725277841450,-151.0,0.00273973,120]
[336986888,1725277841466,-352.718682,0.00273973,60]
[336986889,1725277841476,-352.718682,0.00273973,60]
[336986890,1725277841486,-352.718682,0.00273973,60]
[336986891,1725277841495,-352.718682,0.00273973,60]
[336986892,1725277841505,-352.718682,0.00273973,60]
[336986893,1725277841515,-352.718682,0.00273973,60]
[336986894,1725277841525,-352.718682,0.00273973,60]
[336986895,1725277841535,-352.718682,0.00273973,60]
[336986896,1725277841546,-352.718682,0.00273973,60]
[336986897,1725277841556,-352.718682,0.00273973,60]
[336986898,1725277841568,-352.718682,0.00273973,60]
[336986899,1725277841579,-352.718682,0.00273973,60]
[336986900,1725277841590,-352.718682,0.00273973,60]
[336986901,1725277841600,-352.718682,0.00273973,60]
[336986902,1725277841611,-352.718682,0.00273973,60]
[336986903,1725277841622,-352.718682,0.00273973,60]
[336986904,1725277841737,-352.718682,0.00273973,60]
[336986905,1725277841750,-352.718682,0.00273973,60]
[336986906,1725277841760,-352.718682,0.00273973,60]
[336986907,1725277841769,-352.718689,0.00273973,60]
[336986908,1725277841779,-151.0,0.00273973,120]
[336986909,1725277841788,-151.0,0.00273973,120]
[336986910,1725277841798,-151.0,0.00273973,120]
[336986911,1725277841807,-151.0,0.00273973,120]
[336986912,1725277841819,-151.0,0.00273973,120]
[336986913,1725277841829,-151.0,0.00273973,120]
[336986914,1725277841838,-151.0,0.00273973,120]
[336986915,1725277841847,-153.522009,0.00273973,120]
[336986916,1725277841856,-151.0,0.00273973,120]
[336986917,1725277841867,-151.0,0.00273973,120]
[336986918,1725277841877,-151.0,0.00273973,120]
[336986919,1725277841887,-151.0,0.00273973,120]
[336986920,1725277841897,-151.0,0.00273973,120]
[336986921,1725277841907,-174.06495,0.00273973,120]
[336986922,1725277841916,-174.06495,0.00273973,120]
[336986923,1725277841926,-174.06495,0.00273973,120]
[336986924,1725277841936,-174.06495,0.00273973,120]
[336986925,1725277841946,-174.06495,0.00273973,120]
[336986926,1725277841960,-174.06495,0.00273973,120]
[336986927,1725277841969,-174.06495,0.00273973,120]
[336986928,1725277841979,-174.06495,0.00273973,120]
[336986929,1725277841988,-174.06495,0.00273973,120]
[336986930,1725277841998,-174.06495,0.00273973,120]
[336986931,1725277842008,-174.06495,0.00273973,120]
[336986932,1725277842017,-174.06495,0.00273973,120]
[336986933,1725277842027,-174.06495,0.00273973,120]
[336986934,1725277842037,-174.06495,0.00273973,120]
[336986935,1725277842046,-174.06495,0.00273973,120]
[336986936,1725277842056,-174.06495,0.00273973,120]
[336986937,1725277842065,-174.06495,0.00273973,120]
[336986938,1725277842075,-174.06495,0.00273973,120]
[336986939,1725277842084,-174.06495,0.00273973,120]
[336986940,1725277842094,-174.064954,0.00273973,120]
[336986941,1725277842103,-151.0,0.00273973,120]
[336986942,1725277842113,-151.0,0.00273973,120]
[336986943,1725277842122,-151.0,0.00273973,120]
[336986944,1725277842131,-151.0,0.00273973,120]
[336986945,1725277842140,-151.0,0.00273973,120]
[336986946,1725277842150,-151.0,0.00273973,120]
[336986947,1725277842159,-151.0,0.00273973,120]
[336986948,1725277842168,-151.0,0.00273973,120]
[336986949,1725277842178,-151.0,0.00273973,120]
[336986950,1725277842187,-151.0,0.00273973,120]
[336986951,1725277842196,-151.0,0.00273973,120]
[336986952,1725277842207,-151.0,0.00273973,120]
[336986953,1725277842217,-151.0,0.00273973,120]
[336986954,1725277842227,-151.0,0.00273973,120]
[336986955,1725277842236,-151.0,0.00273973,120]
[336986956,1725277842245,-259.248288,0.00273973,120]
[336986957,1725277842254,-1404.437824,0.00273973,120]
[336986958,1725277842263,-1404.437824,0.00273973,120]
[336986959,1725277842272,-1404.437824,0.00273973,120]
[336986960,1725277842281,-1404.437824,0.00273973,120]
[336986961,1725277842291,-1404.437824,0.00273973,120]
[336986962,1725277842299,-1404.437824,0.00273973,120]
[336986963,1725277842309,-1404.437824,0.00273973,120]
[336986964,1725277842318,-1404.437824,0.00273973,120]
[336986965,1725277842328,-1404.437824,0.00273973,120]
[336986966,1725277842337,-1404.437824,0.00273973,120]
[336986967,1725277842346,-1404.437824,0.00273973,120]
[336986968,1725277842357,-1404.437824,0.00273973,120]
[336986969,1725277842366,-1404.437824,0.00273973,120]
[336986970,1725277842376,-1404.437824,0.00273973,120]
[336986971,1725277842387,-1404.437824,0.00273973,120]
[336986972,1725277842397,-1404.437824,0.00273973,120]
[336986973,1725277842408,-734.38560816,0.00273973,120]
[336986992,1725277847311,-250.0,0.00061896,120]
[336986993,1725277847321,-150.921,0.00061896,120]
[336986994,1725277847332,-670.05221584,0.00273973,120]
[336986995,1725277847343,-1404.437824,0.00273973,120]
[336986996,1725277847355,-1404.437824,0.00273973,120]
[336986997,1725277847364,-151.0,0.00273973,30]
[336986998,1725277847374,-151.0,0.00273973,120]
[336986999,1725277847384,-151.0,0.00273973,120]
[336987000,1725277847393,-151.0,0.00273973,120]
[336987001,1725277847403,-151.0,0.00273973,120]
[336987002,1725277847413,-151.0,0.00273973,120]
[336987003,1725277847422,-151.0,0.00273973,120]
[336987004,1725277847431,-151.0,0.00273973,120]
[336987005,1725277847441,-151.0,0.00273973,120]
[336987006,1725277847450,-299.846972,0.00273973,120]
[336987007,1725277847465,-151.0,0.00273973,120]
[336987008,1725277847475,-151.0,0.00273973,120]
[336987009,1725277847484,-151.0,0.00273973,120]
[336987010,1725277847494,-151.0,0.00273973,120]
[336987011,1725277847503,-151.0,0.00273973,120]
[336987012,1725277847512,-269.454144,0.00273973,120]
[336987013,1725277847522,-150.0,0.002749,120]
[336987014,1725277847531,-200.0,0.002759,120]
[336987015,1725277847540,-153.0,0.00281545,120]
[336987016,1725277847550,-607.24,0.00299997,120]
[336987017,1725277847561,-500.0,0.00299997,120]
[336987018,1725277847570,-2000.02,0.00299998,120]
[336987019,1725277847580,-2000.02,0.00299998,120]
[336987020,1725277847589,-500.0,0.00299999,120]
[336987021,1725277847598,-2375.0,0.00299999,2]
[336987022,1725277847608,-150.0,0.003,120]
[336987023,1725277847618,-500.0,0.00301366,120]
[336987024,1725277847627,-500.0,0.00301366,120]
[336987025,1725277847637,-488.74989634,0.00301368,120]
[336987026,1725277847647,-5414.53621993,0.00301368,120]
[336987027,1725277847656,-645.16129032,0.0031,120]
[336987028,1725277847665,-638.60977079,0.00319644,120]
[336987029,1725277847674,-2000.02,0.00319998,120]
[336987030,1725277847683,-625.0,0.0032,120]
[336987031,1725277847693,-606.06060606,0.0033,120]
[336987032,1725277847702,-1448.53,0.00339999,120]
[336987033,1725277847713,-3957.59,0.00339999,120]
[336987034,1725277847723,-625.0,0.00339999,120]
[336987035,1725277847734,-500.0,0.00339999,120]
[336987036,1725277847748,-500.0,0.00339999,8]
[336987037,1725277847757,-588.23529412,0.0034,120]
[336987038,1725277847766,-5000.0,0.003488,120]
[336987039,1725277847775,-12098.08117009,0.00349798,61]
[336987040,1725277847809,856.86823519,0.000409,120]
[336987041,1725277847838,3484.31269466,0.000409,120]
[336987042,1725277847940,-185.71461985,0.00349798,61]
[336987044,1725277891161,-300.0,0.00054793,120]
[336987045,1725277891188,-24700.0,0.00054794,120]
[336987046,1725277896874,-315.0,0.00054794,2]
[336987047,1725277896903,-19033.91135156,0.00054794,120]
[336987048,1725277897166,206.287498,0.00014247,2]
[336987049,1725277907895,-180.2,0.00065753,120]
[336987050,1725277910022,2897.85,0.00034,15]
[336987051,1725277923656,149.885639,0.00026001,2]
[336987052,1725277923987,149.885639,0.00026326,2]
[336987053,1725277924299,149.885639,0.00026651,2]
[336987054,1725277924645,149.885639,0.00026976,2]
[336987055,1725277924939,149.885639,0.00027301,2]
[336987056,1725277932028,167.180179,0.00026001,2]